{"text_format":"1","workbook":"xlsx","n_sheets":1,"sheets":["rr"],"not_rendered":{"charts":0,"images":0,"macros":1,"external_links":0,"defined_names":0,"comments":0,"pivot_tables":0},"unopened":[],"bounds":{"document_bytes":16777216,"sheet_cells":100000,"rows_first":2000,"rows_last":500,"rows_between":2000,"halvings":0,"cell_chars":16384,"cell_head_chars":4096},"cells_cut":0,"cells_raw":0,"read":"whole","date_system":"1900"}

{"sheet":"rr","index":0,"n_rows":44,"n_cols":26,"rows_kept":44,"cut":false,"hidden":false,"merged":[[0,25,1,25],[0,0,1,0],[0,1,1,1],[0,2,1,2],[0,3,1,3],[0,4,1,4],[0,24,1,24]]}
["الاســــــم","الصف","التخصص","رقم الجلوس","سري","لغه عربيه","لغه انجليزيه","فلسفه","رياضه عامه","فيزياء","رسم فني","مواد وعمليات تشغيل","اساسيات حاسب","معمل اساسيات حاسب","تحكم هيدروليكي","معمل تحكم هيدروليكي","رياضه تخصصيه","هندسه كهربيه","دوائر الكترونيه","نظم تحكم","معمل نظم تحكم","تدريبات مهنيه","مجموع","تربيه دينيه","حالة الطالب","الترتيب"]
[null,null,null,null,null,40,40,40,40,40,60,20,30,10,20,10,40,40,30,30,10,100,{"$f":"SUM(F2:V2)","v":600},20]
["ريم محمد عبد الوهاب السيد علي طنطاوي","الثاني","تحكم",null,null,null,null,null,null,null,null,null,null,null,null,null,null,null,null,null,null,null,{"$f":"SUM(F3:V3)","v":0},null,{"$f":"IF(W3<=300,\"راسب\",\"ناجح\")","v":"راسب"},{"$f":"RANK(W3,$W$3:$W$44)","v":1}]
["زينب عبد السلام مصطفي حسين","الثاني","تحكم",null,null,null,null,null,null,null,null,null,null,null,null,null,null,null,null,null,null,null,0,null,{"$f":"IF(W4<=300,\"راسب\",\"ناجح\")","v":"راسب"},{"$f":"RANK(W4,$W$3:$W$44)","v":1}]
["ساميه صبري السيد عثمان","الثاني","تحكم",null,null,null,null,null,null,null,null,null,null,null,null,null,null,null,null,null,null,null,0,null,"راسب",1]
["سماء طارق علي محمد علي البشاوي ","الثاني","تحكم",null,null,null,null,null,null,null,null,null,null,null,null,null,null,null,null,null,null,null,0,null,"راسب",1]
["سهيله ربيع حسن مصطفي محمد","الثاني","تحكم",null,null,null,null,null,null,null,null,null,null,null,null,null,null,null,null,null,null,null,0,null,"راسب",1]
["سهيله محمد السيد عثمان السيد الشناوي","الثاني","تحكم",null,null,null,null,null,null,null,null,null,null,null,null,null,null,null,null,null,null,null,0,null,"راسب",1]
["فاتن يسري عبد العزيز الزين بدوي","الثاني","تحكم",null,null,null,null,null,null,null,null,null,null,null,null,null,null,null,null,null,null,null,0,null,"راسب",1]
["فاطمه السيد توفيق محمد عطا","الثاني","تحكم",null,null,null,null,null,null,null,null,null,null,null,null,null,null,null,null,null,null,null,0,null,"راسب",1]
["فاطمه عبد العال محمد حسن","الثاني","تحكم",null,null,null,null,null,null,null,null,null,null,null,null,null,null,null,null,null,null,null,0,null,"راسب",1]
["فاطمه محروس صبري مرسي يونس","الثاني","تحكم",null,null,null,null,null,null,null,null,null,null,null,null,null,null,null,null,null,null,null,0,null,"راسب",1]
["فاطمه محمد محمد توفيق محمد","الثاني","تحكم",null,null,null,null,null,null,null,null,null,null,null,null,null,null,null,null,null,null,null,0,null,"راسب",1]
["فاطمه محمود عمر ابراهيم عبد الله","الثاني","تحكم",null,null,null,null,null,null,null,null,null,null,null,null,null,null,null,null,null,null,null,0,null,"راسب",1]
["مادونا فايز نصيف جرجس","الثاني","تحكم",null,null,null,null,null,null,null,null,null,null,null,null,null,null,null,null,null,null,null,0,null,"راسب",1]
["مروه محمود محمد حلمي محمد سيد احمد","الثاني","تحكم",null,null,null,null,null,null,null,null,null,null,null,null,null,null,null,null,null,null,null,0,null,"راسب",1]
["اسماء ابراهيم احمد السيد","الثاني","تحكم",null,null,null,null,null,null,null,null,null,null,null,null,null,null,null,null,null,null,null,0,null,"راسب",1]
["اسماء محمد احمد محمد محمد السيد","الثاني","تحكم",null,null,null,null,null,null,null,null,null,null,null,null,null,null,null,null,null,null,null,0,null,"راسب",1]
["اشرقت محمد محمد السيد خاطر","الثاني","تحكم",null,null,null,null,null,null,null,null,null,null,null,null,null,null,null,null,null,null,null,0,null,"راسب",1]
["الاء السيد احمد عبد الباسط","الثاني","تحكم",null,null,null,null,null,null,null,null,null,null,null,null,null,null,null,null,null,null,null,0,null,"راسب",1]
["الاء فتحي توفيق محمد احمد خطاب","الثاني","تحكم",null,null,null,null,null,null,null,null,null,null,null,null,null,null,null,null,null,null,null,0,null,"راسب",1]
["ايمان السيد ابراهيم مصطفي حبيب","الثاني","تحكم",null,null,null,null,null,null,null,null,null,null,null,null,null,null,null,null,null,null,null,0,null,"راسب",1]
["ايمان السيد صالح ايوب صالح","الثاني","تحكم",null,null,null,null,null,null,null,null,null,null,null,null,null,null,null,null,null,null,null,0,null,"راسب",1]
["ايه محمد السيد محمد","الثاني","تحكم",null,null,null,null,null,null,null,null,null,null,null,null,null,null,null,null,null,null,null,0,null,"راسب",1]
["تهاني رمضان محمد عطيه","الثاني","تحكم",null,null,null,null,null,null,null,null,null,null,null,null,null,null,null,null,null,null,null,0,null,"راسب",1]
["خلود رمضان مصطفي حسن","الثاني","تحكم",null,null,null,null,null,null,null,null,null,null,null,null,null,null,null,null,null,null,null,0,null,"راسب",1]
["دينا محمد عبد الفتاح عبد العظيم","الثاني","تحكم",null,null,null,null,null,null,null,null,null,null,null,null,null,null,null,null,null,null,null,0,null,"راسب",1]
["رانا صابر عبد الرحمن مصطفي قنديل","الثاني","تحكم",null,null,null,null,null,null,null,null,null,null,null,null,null,null,null,null,null,null,null,0,null,"راسب",1]
["راندا احمد عبد الرحمن عبد العزيز","الثاني","تحكم",null,null,null,null,null,null,null,null,null,null,null,null,null,null,null,null,null,null,null,0,null,"راسب",1]
["رحاب السيد عبد الحميد علي محمد","الثاني","تحكم",null,null,null,null,null,null,null,null,null,null,null,null,null,null,null,null,null,null,null,0,null,"راسب",1]
["مريم السيد عبد النبي خليل","الثاني","تحكم",null,null,null,null,null,null,null,null,null,null,null,null,null,null,null,null,null,null,null,0,null,"راسب",1]
["مطيعه محمد عبد المنعم ابراهيم غريب","الثاني","تحكم",null,null,null,null,null,null,null,null,null,null,null,null,null,null,null,null,null,null,null,0,null,"راسب",1]
["مني اسامه وصفي السيد","الثاني","تحكم",null,null,null,null,null,null,null,null,null,null,null,null,null,null,null,null,null,null,null,0,null,"راسب",1]
["مي رمضان عبد الوهاب علي","الثاني","تحكم",null,null,null,null,null,null,null,null,null,null,null,null,null,null,null,null,null,null,null,0,null,"راسب",1]
["مي سعيد محمد اسماعيل","الثاني","تحكم",null,null,null,null,null,null,null,null,null,null,null,null,null,null,null,null,null,null,null,0,null,"راسب",1]
["مي محمد عوض الله محمد ","الثاني","تحكم",null,null,null,null,null,null,null,null,null,null,null,null,null,null,null,null,null,null,null,0,null,"راسب",1]
["مي موسي عبد العزيز علي","الثاني","تحكم",null,null,null,null,null,null,null,null,null,null,null,null,null,null,null,null,null,null,null,0,null,"راسب",1]
["نرمين خالد شحاته محمدي دياب","الثاني","تحكم",null,null,null,null,null,null,null,null,null,null,null,null,null,null,null,null,null,null,null,0,null,"راسب",1]
["نورا الشحات محمد الصادق محمد","الثاني","تحكم",null,null,null,null,null,null,null,null,null,null,null,null,null,null,null,null,null,null,null,0,null,"راسب",1]
["نورهان مصطفي محمد مصطفي ","الثاني","تحكم",null,null,null,null,null,null,null,null,null,null,null,null,null,null,null,null,null,null,null,0,null,"راسب",1]
["نيره محمد محمد السيد علي","الثاني","تحكم",null,null,null,null,null,null,null,null,null,null,null,null,null,null,null,null,null,null,null,0,null,"راسب",1]
["هاجر محمد توفيق علي عطيه ","الثاني","تحكم",null,null,null,null,null,null,null,null,null,null,null,null,null,null,null,null,null,null,null,0,null,"راسب",1]
["هدير صابر محمد محمد عطيه","الثاني","تحكم",null,null,null,null,null,null,null,null,null,null,null,null,null,null,null,null,null,null,null,0,null,"راسب",1]
["ياسمين احمد محمد احمد ايوب","الثاني","تحكم",null,null,null,null,null,null,null,null,null,null,null,null,null,null,null,null,null,null,null,0,null,"راسب",1]